fUSD/lending_fUSD_20240718
["ID","MTS","AMOUNT","RATE_DAILY","PERIOD"]
[332522478,1721287999257,-500.0,0.00023561,2]
[332522479,1721287999267,-500.0,0.00023561,2]
[332522480,1721287999278,-500.0,0.00023561,2]
[332522481,1721287999287,-676.4,0.00023561,2]
[332522482,1721287999297,-500.0,0.00023561,2]
[332522483,1721287999307,-538.06,0.00023561,2]
[332522484,1721287999316,-500.0,0.00023561,2]
[332522485,1721287999326,-500.0,0.00023561,2]
[332522486,1721287999336,-500.0,0.00023561,2]
[332522487,1721287999345,-500.0,0.00023561,2]
[332522488,1721287999356,-1065.58,0.00023561,2]
[332522489,1721287999366,-500.0,0.00023561,2]
[332522490,1721287999376,-500.0,0.00023561,2]
[332522491,1721287999385,-500.0,0.00023561,2]
[332522492,1721287999395,-500.0,0.00023561,2]
[332522493,1721287999404,-500.0,0.00023561,2]
[332522494,1721287999414,-500.0,0.00023561,2]
[332522495,1721287999424,-500.0,0.00023561,2]
[332522496,1721287999435,-872.67,0.00023561,2]
[332522497,1721287999444,-1348.92,0.00023561,2]
[332522498,1721287999454,-500.0,0.00023561,2]
[332522499,1721287999464,-500.0,0.00023561,2]
[332522500,1721287999473,-500.0,0.00023561,2]
[332522501,1721287999483,-500.0,0.00023561,2]
[332522502,1721287999492,-507.79807354,0.00023561,2]
[332522503,1721287999502,-500.0,0.00023561,2]
[332522504,1721287999511,-838.7,0.00023561,2]
[332522505,1721287999520,-213.97822048,0.00023561,2]
[332522506,1721287999530,-500.0,0.00023561,2]
[332522507,1721287999539,-500.0,0.00023561,2]
[332522508,1721287999549,-500.0,0.00023561,2]
[332522509,1721287999559,-503.03,0.00023561,2]
[332522510,1721287999568,-500.0,0.00023561,2]
[332522511,1721287999578,-500.0,0.00023561,2]
[332522512,1721287999587,-502.39641607,0.00023561,2]
[332522513,1721287999597,-500.0,0.00023561,2]
[332522514,1721287999607,-500.0,0.00023561,2]
[332522515,1721287999616,-500.0,0.00023561,2]
[332522516,1721287999625,-500.0,0.00023561,2]
[332522517,1721287999636,-500.0,0.00023561,2]
[332522518,1721287999648,-500.0,0.00023561,2]
[332522519,1721287999658,-500.0,0.00023561,2]
[332522520,1721287999667,-500.0,0.00023561,2]
[332522521,1721287999680,-500.0,0.00023561,2]
[332522522,1721287999689,-500.0,0.00023561,2]
[332522523,1721287999698,-802.6,0.00023561,2]
[332522524,1721287999708,-500.0,0.00023561,2]
[332522525,1721287999717,-780.83,0.00023561,2]
[332522526,1721287999728,-579.37,0.00023561,2]
[332522527,1721287999738,-500.0,0.00023561,2]
[332522528,1721287999748,-781.35,0.00023561,2]
[332522529,1721287999757,-500.0,0.00023561,2]
[332522530,1721287999767,-352.78,0.00023561,2]
[332522531,1721287999776,-724.1,0.00023561,2]
[332522532,1721287999786,-500.0,0.00023561,2]
[332522533,1721287999795,-500.0,0.00023561,2]
[332522534,1721287999805,-500.0,0.00023561,2]
[332522535,1721287999815,-500.0,0.00023561,2]
[332522536,1721287999824,-568.82,0.00023561,2]
[332522537,1721287999834,-500.0,0.00023561,2]
[332522538,1721287999844,-500.0,0.00023561,2]
[332522539,1721287999854,-500.0,0.00023561,2]
[332522540,1721287999864,-1287.42,0.00023561,2]
[332522541,1721287999874,-500.0,0.00023561,2]
[332522542,1721287999884,-500.0,0.00023561,2]
[332522543,1721287999894,-771.73,0.00023561,2]
[332522544,1721287999903,-500.0,0.00023561,2]
[332522545,1721287999912,-1353.92,0.00023561,2]
[332522546,1721287999923,-1387.82,0.00023561,2]
[332522547,1721287999933,-500.0,0.00023561,2]
[332522548,1721287999943,-500.0,0.00023561,2]
[332522549,1721287999952,-500.0,0.00023561,2]
[332522550,1721287999962,-500.0,0.00023561,2]
[332522551,1721287999972,-553.81,0.00023561,2]
[332522552,1721287999982,-500.0,0.00023561,2]
[332522553,1721287999991,-500.0,0.00023561,2]
[332522554,1721288000001,-500.0,0.00023561,2]
[332522555,1721288000011,-500.0,0.00023561,2]
[332522556,1721288000021,-500.0,0.00023561,2]
[332522557,1721288000030,-500.0,0.00023561,2]
[332522558,1721288000040,-500.0,0.00023561,2]
[332522559,1721288000050,-500.0,0.00023561,2]
[332522560,1721288000060,-412.38801672,0.00023561,2]
[332522561,1721288000071,-500.0,0.00023561,2]
[332522562,1721288000081,-500.0,0.00023561,2]
[332522563,1721288000091,-500.0,0.00023561,2]
[332522564,1721288000101,-682.98,0.00023561,2]
[332522565,1721288000111,-911.72,0.00023561,2]
[332522566,1721288000120,-333.08283141,0.00023561,2]
[332522567,1721288000130,-819.38,0.00023561,2]
[332522568,1721288000140,-500.0,0.00023561,2]
[332522569,1721288000397,-972.31,0.00023561,2]
[332522570,1721288000409,-500.0,0.00023561,2]
[332522571,1721288000419,-500.0,0.00023561,2]
[332522572,1721288000431,-500.0,0.00023561,2]
[332522573,1721288000440,-1109.76,0.00023561,2]
[332522574,1721288000454,-500.0,0.00023561,2]
[332522575,1721288000464,-500.0,0.00023561,2]
[332522576,1721288000474,-500.0,0.00023561,2]
[332522577,1721288000483,-500.0,0.00023561,2]
[332522578,1721288000494,-504.57260782,0.00023561,2]
[332522579,1721288000504,-500.0,0.00023561,2]
[332522580,1721288000514,-500.0,0.00023561,2]
[332522581,1721288000524,-500.0,0.00023561,2]
[332522582,1721288000533,-836.26,0.00023561,2]
[332522583,1721288000542,-500.0,0.00023561,2]
[332522584,1721288000551,-500.0,0.00023561,2]
[332522585,1721288000561,-544.15,0.00023561,2]
[332522586,1721288000570,-500.0,0.00023561,2]
[332522587,1721288000580,-500.0,0.00023561,2]
[332522588,1721288000590,-659.68,0.00023561,2]
[332522589,1721288000599,-744.75,0.00023561,2]
[332522590,1721288000609,-500.0,0.00023561,2]
[332522591,1721288000619,-504.34880341,0.00023561,2]
[332522592,1721288000628,-918.1,0.00023561,2]
[332522593,1721288000641,-1074.46,0.00023561,2]
[332522594,1721288000651,-500.0,0.00023561,2]
[332522595,1721288000660,-500.0,0.00023561,2]
[332522596,1721288000670,-500.0,0.00023561,2]
[332522597,1721288000683,-637.37,0.00023561,2]
[332522598,1721288000692,-500.0,0.00023561,2]
[332522599,1721288000702,-500.0,0.00023561,2]
[332522600,1721288000711,-500.0,0.00023561,2]
[332522601,1721288000723,-500.0,0.00023561,2]
[332522602,1721288000733,-941.47,0.00023561,2]
[332522603,1721288000743,-808.27,0.00023561,2]
[332522604,1721288000752,-1715.0,0.00023561,2]
[332522605,1721288000762,-500.0,0.00023561,2]
[332522606,1721288000771,-500.0,0.00023561,2]
[332522607,1721288000781,-500.0,0.00023561,2]
[332522608,1721288000791,-500.0,0.00023561,2]
[332522609,1721288000801,-500.0,0.00023561,2]
[332522610,1721288000811,-543.92,0.00023561,2]
[332522611,1721288000820,-702.02,0.00023561,2]
[332522612,1721288000830,-500.0,0.00023561,2]
[332522613,1721288000840,-500.0,0.00023561,2]
[332522614,1721288000850,-500.0,0.00023561,2]
[332522615,1721288000860,-500.0,0.00023561,2]
[332522616,1721288000870,-500.0,0.00023561,2]
[332522617,1721288000880,-500.0,0.00023561,2]
[332522618,1721288000890,-848.98,0.00023561,2]
[332522619,1721288000900,-500.0,0.00023561,2]
[332522620,1721288000909,-500.0,0.00023561,2]
[332522621,1721288000919,-500.0,0.00023561,2]
[332522622,1721288000930,-500.0,0.00023561,2]
[332522623,1721288000940,-833.62,0.00023561,2]
[332522624,1721288000949,-500.0,0.00023561,2]
[332522625,1721288000959,-500.0,0.00023561,2]
[332522626,1721288000969,-747.03,0.00023561,2]
[332522627,1721288000978,-694.12,0.00023561,2]
[332522628,1721288000988,-500.0,0.00023561,2]
[332522629,1721288000997,-500.0,0.00023561,2]
[332522630,1721288001007,-1393.96,0.00023561,2]
[332522631,1721288001017,-923.3,0.00023561,2]
[332522632,1721288001027,-864.51,0.00023561,2]
[332522633,1721288001037,-874.63,0.00023561,2]
[332522634,1721288001047,-500.0,0.00023561,2]
[332522635,1721288001057,-500.0,0.00023561,2]
[332522636,1721288001066,-572.13,0.00023561,2]
[332522637,1721288001076,-768.44,0.00023561,2]
[332522638,1721288001085,-919.94,0.00023561,2]
[332522639,1721288001095,-500.0,0.00023561,2]
[332522640,1721288001105,-500.0,0.00023561,2]
[332522641,1721288001115,-505.12850945,0.00023561,2]
[332522642,1721288001124,-500.0,0.00023561,2]
[332522643,1721288001135,-500.0,0.00023561,2]
[332522644,1721288001144,-500.0,0.00023561,2]
[332522645,1721288001154,-500.0,0.00023561,2]
[332522646,1721288001165,-500.0,0.00023561,2]
[332522647,1721288001176,-500.0,0.00023561,2]
[332522648,1721288001185,-500.0,0.00023561,2]
[332522649,1721288001195,-567.01,0.00023561,2]
[332522650,1721288001205,-750.97,0.00023561,2]
[332522651,1721288001215,-500.0,0.00023561,2]
[332522652,1721288001224,-500.0,0.00023561,2]
[332522653,1721288001234,-664.81,0.00023561,2]
[332522654,1721288001243,-500.0,0.00023561,2]
[332522655,1721288001253,-500.0,0.00023561,2]
[332522656,1721288001262,-500.0,0.00023561,2]
[332522657,1721288001273,-1439.37,0.00023561,2]
[332522658,1721288001283,-500.0,0.00023561,2]
[332522659,1721288001292,-500.0,0.00023561,2]
[332522660,1721288001302,-820.24,0.00023561,2]
[332522661,1721288001312,-500.0,0.00023561,2]
[332522662,1721288001321,-500.0,0.00023561,2]
[332522663,1721288001331,-500.0,0.00023561,2]
[332522664,1721288001341,-332.9083745,0.00023561,2]
[332522665,1721288001350,-659.88,0.00023561,2]
[332522666,1721288001360,-500.0,0.00023561,2]
[332522667,1721288001370,-500.0,0.00023561,2]
[332522668,1721288001379,-675.36,0.00023561,2]
[332522669,1721288001389,-500.0,0.00023561,2]
[332522670,1721288001398,-500.0,0.00023561,2]
[332522671,1721288001408,-1239.37,0.00023561,2]
[332522672,1721288001418,-500.0,0.00023561,2]
[332522673,1721288001430,-639.00718475,0.00023561,2]
[332522674,1721288001439,-500.0,0.00023561,2]
[332522675,1721288001450,-587.43,0.00023561,2]
[332522676,1721288001461,-500.0,0.00023561,2]
[332522677,1721288001471,-500.0,0.00023561,2]
[332522678,1721288001480,-500.0,0.00023561,2]
[332522679,1721288001490,-500.0,0.00023561,2]
[332522680,1721288001500,-500.0,0.00023561,2]
[332522681,1721288001511,-500.0,0.00023561,2]
[332522682,1721288001522,-500.0,0.00023561,2]
[332522683,1721288001532,-500.0,0.00023561,2]
[332522684,1721288001541,-356.93946749,0.00023561,2]
[332522685,1721288001551,-500.0,0.00023561,2]
[332522686,1721288001561,-1037.75,0.00023561,2]
[332522687,1721288001571,-1312.95,0.00023561,2]
[332522688,1721288001581,-500.0,0.00023561,2]
[332522689,1721288001592,-500.0,0.00023561,2]
[332522690,1721288001602,-1508.18,0.00023561,2]
[332522691,1721288001612,-759.36,0.00023561,2]
[332522692,1721288001621,-589.69,0.00023561,2]
[332522693,1721288001631,-500.0,0.00023561,2]
[332522694,1721288001644,-589.59,0.00023561,2]
[332522695,1721288001654,-500.0,0.00023561,2]
[332522696,1721288001664,-500.0,0.00023561,2]
[332522697,1721288001673,-500.0,0.00023561,2]
[332522698,1721288001685,-500.0,0.00023561,2]
[332522699,1721288001695,-519.36,0.00023561,2]
[332522700,1721288001705,-500.0,0.00023561,2]
[332522701,1721288001717,-500.0,0.00023561,2]
[332522702,1721288001727,-465.48,0.00023561,2]
[332522703,1721288001737,-500.0,0.00023561,2]
[332522704,1721288001746,-500.0,0.00023561,2]
[332522705,1721288001756,-500.0,0.00023561,2]
[332522706,1721288001766,-500.0,0.00023561,2]
[332522707,1721288001776,-500.0,0.00023561,2]
[332522708,1721288001786,-500.0,0.00023561,2]
[332522709,1721288001795,-1570.3,0.00023561,2]
[332522710,1721288001806,-500.0,0.00023561,2]
[332522711,1721288001815,-500.0,0.00023561,2]
[332522712,1721288001824,-500.0,0.00023561,2]
[332522713,1721288001835,-500.0,0.00023561,2]
[332522714,1721288001844,-500.0,0.00023561,2]
[332522715,1721288001854,-500.0,0.00023561,2]
[332522716,1721288001863,-500.0,0.00023561,2]
[332522717,1721288001873,-684.5,0.00023561,2]
[332522718,1721288001883,-500.0,0.00023561,2]
[332522719,1721288001893,-500.0,0.00023561,2]
[332522720,1721288001904,-500.0,0.00023561,2]
[332522721,1721288001915,-500.0,0.00023561,2]
[332522722,1721288001925,-508.47812108,0.00023561,2]
[332522723,1721288001936,-778.25,0.00023561,2]
[332522724,1721288001946,-500.0,0.00023561,2]
[332522725,1721288001956,-1825.46,0.00023561,2]
[332522726,1721288001966,-647.56,0.00023561,2]
[332522727,1721288001976,-1501.12,0.00023561,2]
[332522728,1721288001985,-649.76,0.00023561,2]
[332522729,1721288001995,-500.0,0.00023561,2]
[332522730,1721288002004,-500.0,0.00023561,2]
[332522731,1721288002013,-500.0,0.00023561,2]
[332522732,1721288002023,-500.0,0.00023561,2]
[332522733,1721288002032,-500.0,0.00023561,2]
[332522734,1721288002042,-500.0,0.00023561,2]
[332522735,1721288002053,-558.27214899,0.00023561,2]
[332522736,1721288002063,-698.16,0.00023561,2]
[332522737,1721288002074,-500.0,0.00023561,2]
[332522738,1721288002084,-500.0,0.00023561,2]
[332522739,1721288002093,-500.0,0.00023561,2]
[332522740,1721288002103,-500.0,0.00023561,2]
[332522741,1721288002113,-500.0,0.00023561,2]
[332522742,1721288002122,-500.0,0.00023561,2]
[332522743,1721288002132,-838.21,0.00023561,2]
[332522744,1721288002141,-500.0,0.00023561,2]
[332522745,1721288002151,-500.0,0.00023561,2]
[332522746,1721288002160,-500.0,0.00023561,2]
[332522747,1721288002170,-500.0,0.00023561,2]
[332522748,1721288002180,-500.0,0.00023561,2]
[332522749,1721288002189,-832.49,0.00023561,2]
[332522750,1721288002198,-500.0,0.00023561,2]
[332522751,1721288002207,-500.0,0.00023561,2]
[332522752,1721288002218,-500.0,0.00023561,2]
[332522753,1721288002228,-500.0,0.00023561,2]
[332522754,1721288002238,-500.0,0.00023561,2]
[332522755,1721288002248,-500.0,0.00023561,2]
[332522756,1721288002257,-635.85,0.00023561,2]
[332522757,1721288002266,-500.0,0.00023561,2]
[332522758,1721288002276,-500.0,0.00023561,2]
[332522759,1721288002286,-500.0,0.00023561,2]
[332522760,1721288002297,-1002.59,0.00023561,2]
[332522761,1721288002308,-667.65,0.00023561,2]
[332522762,1721288002319,-500.0,0.00023561,2]
[332522763,1721288002329,-500.0,0.00023561,2]
[332522764,1721288002339,-500.0,0.00023561,2]
[332522765,1721288002351,-500.0,0.00023561,2]
[332522766,1721288002361,-500.0,0.00023561,2]
[332522767,1721288002370,-1264.99,0.00023561,2]
[332522768,1721288002380,-189.613359,0.00023561,2]
[332522769,1721288002390,-558.12,0.00023561,2]
[332522770,1721288002402,-500.0,0.00023561,2]
[332522771,1721288002412,-828.72,0.00023561,2]
[332522772,1721288002421,-500.0,0.00023561,2]
[332522773,1721288002431,-935.3,0.00023561,2]
[332522774,1721288002440,-825.13,0.00023561,2]
[332522775,1721288002451,-500.0,0.00023561,2]
[332522776,1721288002461,-500.0,0.00023561,2]
[332522777,1721288002470,-500.0,0.00023561,2]
[332522778,1721288002481,-500.0,0.00023561,2]
[332522779,1721288002490,-500.0,0.00023561,2]
[332522780,1721288002500,-500.0,0.00023561,2]
[332522781,1721288002509,-500.0,0.00023561,2]
[332522782,1721288002519,-572.09,0.00023561,2]
[332522783,1721288002528,-174.86298923,0.00023561,2]
[332522784,1721288002537,-500.0,0.00023561,2]
[332522785,1721288002546,-801.73,0.00023561,2]
[332522786,1721288002555,-829.06,0.00023561,2]
[332522787,1721288002564,-500.0,0.00023561,2]
[332522788,1721288002574,-500.0,0.00023561,2]
[332522789,1721288002584,-500.0,0.00023561,2]
[332522790,1721288002593,-500.0,0.00023561,2]
[332522791,1721288002603,-500.0,0.00023561,2]
[332522792,1721288002613,-500.0,0.00023561,2]
[332522793,1721288002622,-500.0,0.00023561,2]
[332522794,1721288002631,-500.0,0.00023561,2]
[332522795,1721288002646,-1500.37,0.00023561,2]
[332522796,1721288002656,-533.21,0.00023561,2]
[332522797,1721288002666,-993.33,0.00023561,2]
[332522798,1721288002677,-500.0,0.00023561,2]
[332522799,1721288002686,-500.0,0.00023561,2]
[332522800,1721288002695,-500.0,0.00023561,2]
[332522801,1721288002704,-500.0,0.00023561,2]
[332522802,1721288002718,-500.0,0.00023561,2]
[332522803,1721288002728,-500.0,0.00023561,2]
[332522804,1721288002737,-500.0,0.00023561,2]
[332522805,1721288002747,-614.68,0.00023561,2]
[332522806,1721288002759,-839.63,0.00023561,2]
[332522807,1721288002768,-1099.16,0.00023561,2]
[332522808,1721288002778,-2190.92,0.00023561,2]
[332522809,1721288002787,-500.0,0.00023561,2]
[332522810,1721288002797,-500.0,0.00023561,2]
[332522811,1721288002806,-769.89,0.00023561,2]
[332522812,1721288002815,-860.39,0.00023561,2]
[332522813,1721288002824,-500.0,0.00023561,2]
[332522814,1721288002833,-1387.79,0.00023561,2]
[332522815,1721288002843,-916.75,0.00023561,2]
[332522816,1721288002852,-500.0,0.00023561,2]
[332522817,1721288002863,-500.0,0.00023561,2]
[332522818,1721288002873,-500.0,0.00023561,2]
[332522819,1721288002998,-500.0,0.00023561,2]
[332522820,1721288003007,-621.09,0.00023561,2]
[332522821,1721288003017,-535.40802361,0.00023561,2]
[332522822,1721288003026,-500.0,0.00023561,2]
[332522823,1721288003035,-2607.0,0.00023561,2]
[332522824,1721288003045,-500.0,0.00023561,2]
[332522825,1721288003055,-500.0,0.00023561,2]
[332522826,1721288003065,-934.95,0.00023561,2]
[332522827,1721288003074,-634.32,0.00023561,2]
[332522828,1721288003083,-1185.83,0.00023561,2]
[332522829,1721288003092,-714.68,0.00023561,2]
[332522830,1721288003101,-500.0,0.00023561,2]
[332522831,1721288003111,-500.0,0.00023561,2]
[332522832,1721288003121,-500.0,0.00023561,2]
[332522833,1721288003130,-706.1,0.00023561,2]
[332522834,1721288003140,-992.23,0.00023561,2]
[332522835,1721288003149,-500.0,0.00023561,2]
[332522836,1721288003158,-719.06,0.00023561,2]
[332522837,1721288003167,-500.0,0.00023561,2]
[332522838,1721288003177,-500.0,0.00023561,2]
[332522839,1721288003186,-625.15708804,0.00023561,2]
[332522840,1721288003195,-879.71,0.00023561,2]
[332522841,1721288003205,-962.74,0.00023561,2]
[332522842,1721288003214,-500.0,0.00023561,2]
[332522843,1721288003223,-500.0,0.00023561,2]
[332522844,1721288003233,-4194.17,0.00023561,2]
[332522845,1721288003242,-500.0,0.00023561,2]
[332522846,1721288003252,-500.0,0.00023561,2]
[332522847,1721288003261,-500.0,0.00023561,2]
[332522848,1721288003270,-500.0,0.00023561,2]
[332522849,1721288003279,-500.0,0.00023561,2]
[332522850,1721288003289,-500.0,0.00023561,2]
[332522851,1721288003298,-796.16,0.00023561,2]
[332522852,1721288003307,-1343.67,0.00023561,2]
[332522853,1721288003316,-500.0,0.00023561,2]
[332522854,1721288003326,-845.59,0.00023561,2]
[332522855,1721288003335,-500.0,0.00023561,2]
[332522856,1721288003344,-500.0,0.00023561,2]
[332522857,1721288003353,-607.98,0.00023561,2]
[332522858,1721288003363,-500.0,0.00023561,2]
[332522859,1721288003371,-884.87,0.00023561,2]
[332522860,1721288003381,-500.0,0.00023561,2]
[332522861,1721288003390,-500.0,0.00023561,2]
[332522862,1721288003399,-500.0,0.00023561,2]
[332522863,1721288003408,-500.0,0.00023561,2]
[332522864,1721288003418,-500.0,0.00023561,2]
[332522865,1721288003428,-563.78,0.00023561,2]
[332522866,1721288003437,-500.0,0.00023561,2]
[332522867,1721288003447,-664.21,0.00023561,2]
[332522868,1721288003457,-500.0,0.00023561,2]
[332522869,1721288003466,-500.0,0.00023561,2]
[332522870,1721288003475,-619.48,0.00023561,2]
[332522871,1721288003484,-1023.41,0.00023561,2]
[332522872,1721288003494,-4286.57,0.00023561,2]
[332522873,1721288003503,-500.0,0.00023561,2]
[332522874,1721288003513,-500.0,0.00023561,2]
[332522875,1721288003522,-759.2,0.00023561,2]
[332522876,1721288003531,-500.0,0.00023561,2]
[332522877,1721288003540,-500.0,0.00023561,2]
[332522878,1721288003549,-500.0,0.00023561,2]
[332522879,1721288003559,-1303.0,0.00023561,2]
[332522880,1721288003569,-664.93,0.00023561,2]
[332522881,1721288003578,-500.0,0.00023561,2]
[332522882,1721288003587,-500.0,0.00023561,2]
[332522883,1721288003597,-779.15,0.00023561,2]
[332522884,1721288003607,-799.99,0.00023561,2]
[332522885,1721288003616,-699.13,0.00023561,2]
[332522886,1721288003625,-500.0,0.00023561,2]
[332522887,1721288003635,-840.9,0.00023561,2]
[332522888,1721288003648,-705.02,0.00023561,2]
[332522889,1721288003657,-500.0,0.00023561,2]
[332522890,1721288003668,-412.56403026,0.00023561,2]
[332522891,1721288003680,-500.0,0.00023561,2]
[332522892,1721288003690,-500.0,0.00023561,2]
[332522893,1721288003700,-500.0,0.00023561,2]
[332522894,1721288003710,-500.0,0.00023561,2]
[332522895,1721288003722,-712.43,0.00023561,2]
[332522896,1721288003731,-500.0,0.00023561,2]
[332522897,1721288003741,-615.07,0.00023561,2]
[332522898,1721288003751,-500.0,0.00023561,2]
[332522899,1721288003760,-640.55,0.00023561,2]
[332522900,1721288003770,-500.0,0.00023561,2]
[332522901,1721288003782,-842.93,0.00023561,2]
[332522902,1721288003791,-521.47668739,0.00023561,2]
[332522903,1721288003800,-1213.95,0.00023561,2]
[332522904,1721288003810,-500.0,0.00023561,2]
[332522905,1721288003819,-500.0,0.00023561,2]
[332522906,1721288003829,-500.0,0.00023561,2]
[332522907,1721288003838,-515.65,0.00023561,2]
[332522908,1721288003848,-500.0,0.00023561,2]
[332522909,1721288003857,-500.0,0.00023561,2]
[332522910,1721288003867,-500.0,0.00023561,2]
[332522911,1721288003876,-500.0,0.00023561,2]
[332522912,1721288003885,-964.94,0.00023561,2]
[332522913,1721288003894,-592.68,0.00023561,2]
[332522914,1721288003904,-6375.98,0.00023561,2]
[332522915,1721288003914,-1083.93,0.00023561,2]
[332522916,1721288003924,-500.0,0.00023561,2]
[332522917,1721288003935,-1379.21,0.00023561,2]
[332522918,1721288003945,-1037.41,0.00023561,2]
[332522919,1721288003955,-500.0,0.00023561,2]
[332522920,1721288003964,-500.0,0.00023561,2]
[332522921,1721288003974,-500.0,0.00023561,2]
[332522922,1721288003984,-500.0,0.00023561,2]
[332522923,1721288003993,-261.7111698,0.00023561,2]
[332522924,1721288004002,-1777.51,0.00023561,2]
[332522925,1721288004012,-559.08,0.00023561,2]
[332522926,1721288004021,-500.0,0.00023561,2]
[332522927,1721288004031,-500.0,0.00023561,2]
[332522928,1721288004040,-1444.47,0.00023561,2]
[332522929,1721288004049,-500.0,0.00023561,2]
[332522930,1721288004059,-1147.47,0.00023561,2]
[332522931,1721288004068,-500.0,0.00023561,2]
[332522932,1721288004078,-500.0,0.00023561,2]
[332522933,1721288004088,-815.97,0.00023561,2]
[332522934,1721288004098,-500.0,0.00023561,2]
[332522935,1721288004107,-500.0,0.00023561,2]
[332522936,1721288004118,-500.0,0.00023561,2]
[332522937,1721288004128,-1394.22,0.00023561,2]
[332522938,1721288004137,-500.0,0.00023561,2]
[332522939,1721288004147,-1149.47,0.00023561,2]
[332522940,1721288004156,-500.0,0.00023561,2]
[332522941,1721288004166,-500.0,0.00023561,2]
[332522942,1721288004176,-500.0,0.00023561,2]
[332522943,1721288004189,-588.95,0.00023561,2]
[332522944,1721288004198,-500.0,0.00023561,2]
[332522945,1721288004209,-7884.99,0.00023561,2]
[332522946,1721288004219,-1142.52,0.00023561,2]
[332522947,1721288004229,-500.0,0.00023561,2]
[332522948,1721288004238,-2350.96,0.00023561,2]
[332522949,1721288004247,-500.0,0.00023561,2]
[332522950,1721288004256,-500.0,0.00023561,2]
[332522951,1721288004266,-817.71,0.00023561,2]
[332522952,1721288004276,-567.84,0.00023561,2]
[332522953,1721288004285,-751.24,0.00023561,2]
[332522954,1721288004294,-500.0,0.00023561,2]
[332522955,1721288004304,-518.01,0.00023561,2]
[332522956,1721288004313,-1047.43,0.00023561,2]
[332522957,1721288004322,-9262.82,0.00023561,2]
[332522958,1721288004331,-576.17,0.00023561,2]
[332522959,1721288004341,-500.0,0.00023561,2]
[332522960,1721288004350,-500.0,0.00023561,2]
[332522961,1721288004359,-500.0,0.00023561,2]
[332522962,1721288004368,-500.0,0.00023561,2]
[332522963,1721288004377,-500.0,0.00023561,2]
[332522964,1721288004387,-943.1,0.00023561,2]
[332522965,1721288004397,-714.81,0.00023561,2]
[332522966,1721288004407,-500.0,0.00023561,2]
[332522967,1721288004417,-500.0,0.00023561,2]
[332522968,1721288004427,-500.0,0.00023561,2]
[332522969,1721288004438,-559.22,0.00023561,2]
[332522970,1721288004447,-1700.34,0.00023561,2]
[332522971,1721288004458,-500.0,0.00023561,2]
[332522972,1721288004467,-671.4,0.00023561,2]
[332522973,1721288004477,-595.86,0.00023561,2]
[332522974,1721288004486,-500.0,0.00023561,2]
[332522975,1721288004496,-500.0,0.00023561,2]
[332522976,1721288004505,-415.25,0.00023561,2]
[332522977,1721288004515,-500.0,0.00023561,2]